Workbook

Sheet Endkampf Mannschaften
A1: Mannschaftsergebnisse Endkampf Bezirksdamenschießen 2018
A3: Schützengau Kitzingen
A4: Namen | B4: Gau | C4: LP | D4: 1. Serie | E4: 2. Serie | F4: 3. Serie | G4: 4. Serie | H4: Ergebnis | I4: Differenz | J4: Tiefschuss | K4: Punkte
A5: Krämer Bianca | B5: =IF(A5>1,$A$3,"") -> Schützengau Kitzingen | C5: - | D5: 94 | E5: 88 | F5: 89 | G5: 87 | H5: =SUM(D5:G5)+M5 -> 358 | I5: =IF(A5>1,400-H5,0) -> 42 | J5: 55.9 | K5: =IF(D5>1,SUM(I5:J5),0) -> 97.9 | L5: =CODE(C5) -> 45 | M5: =IF(L5=120,10,0) -> 0 | N5: =IF(A5>1,1,"") -> 1
A6: Kohr Anette | B6: =IF(A6>1,$A$3,"") -> Schützengau Kitzingen | C6: - | D6: 83 | E6: 89 | F6: 87 | G6: 82 | H6: =SUM(D6:G6)+M6 -> 341 | I6: =IF(A6>1,400-H6,0) -> 59 | J6: 63.1 | K6: =IF(D6>1,SUM(I6:J6),0) -> 122.1 | L6: =CODE(C6) -> 45 | M6: =IF(L6=120,10,0) -> 0 | N6: =IF(A6>1,1,"") -> 1
A7: Schäffner Natalia | B7: Schützengau Kitzingen | C7: - | D7: 91 | E7: 94 | F7: 94 | G7: 97 | H7: 376 | I7: 24 | J7: 6.3 | K7: 30.3 | L7: 45 | M7: 0 | N7: 1 | O7: =IF(O8=4,MAXA(K5:K8),0) -> 0 | P7: Ergebnisse Vorkampf | Q7: Gesamt
C8: - | H8: 0 | I8: =IF(A8>1,400-H8,0) -> 0 | K8: 0 | L8: 45 | M8: 0 | O8: =COUNT(N5:N8) -> 3
H9: =SUM(D9:G9) -> 0 | J9: Gesamt: | K9: =K5+K6+K7+K8-O7 -> 250.3 | P9: 513.6 | Q9: =P9+K9 -> 763.9
A12: Schützengau Main-Spessart
A13: Namen | B13: Gau | C13: LG/LP | D13: 1. Serie | E13: 2. Serie | F13: 3. Serie | G13: 4. Serie | H13: Ergebnis | I13: Differenz | J13: Tiefschuss | K13: Punkte
A14: Bürki Anja | B14: =IF(A14>1,$A$12,"") -> Schützengau Main-Spessart | C14: - | D14: 96 | E14: 94 | F14: 97 | G14: 94 | H14: =SUM(D14:G14)+M14 -> 381 | I14: =IF(A14>1,400-H14,0) -> 19 | J14: 56.5 | K14: =IF(D14>1,SUM(I14:J14),0) -> 75.5 | L14: =CODE(C14) -> 45 | M14: =IF(L14=120,10,0) -> 0 | N14: =IF(A14>1,1,"") -> 1
A15: Aulbach Jasmin | B15: =IF(A15>1,$A$12,"") -> Schützengau Main-Spessart | C15: - | D15: 93 | E15: 96 | F15: 94 | G15: 92 | H15: =SUM(D15:G15)+M15 -> 375 | I15: =IF(A15>1,400-H15,0) -> 25 | J15: 29.1 | K15: =IF(D15>1,SUM(I15:J15),0) -> 54.1 | L15: =CODE(C15) -> 45 | M15: =IF(L15=120,10,0) -> 0 | N15: =IF(A15>1,1,"") -> 1
A16: Wagner Marion | B16: =IF(A16>1,$A$12,"") -> Schützengau Main-Spessart | C16: - | D16: 96 | E16: 99 | F16: 96 | G16: 98 | H16: 389 | I16: 11 | J16: 13 | K16: 24 | L16: 45 | M16: 0 | N16: 1 | O16: =IF(O17=4,MAXA(K14:K17),0) -> 0 | P16: Ergebnisse Vorkampf | Q16: Gesamt
B17: =IF(A17>1,$A$12,"") ->  | C17: - | H17: 0 | I17: =IF(A17>1,400-H17,0) -> 0 | K17: 0 | L17: 45 | M17: 0 | O17: =COUNT(N14:N17) -> 3
B18: =IF(A18>1,$A$12,"") ->  | J18: Gesamt: | K18: =K14+K15+K16+K17-O16 -> 153.6 | P18: 579.8 | Q18: =P18+K18 -> 733.4
A21: Schützengau Maintal
A22: Namen | B22: Gau | D22: 1. Serie | E22: 2. Serie | F22: 3. Serie | G22: 4. Serie | H22: Ergebnis | I22: Differenz | J22: Tiefschuss | K22: Punkte
A23: Haas Steffi | B23: =IF(A23>1,$A$21,"") -> Schützengau Maintal | C23: - | D23: 97 | E23: 93 | F23: 94 | G23: 91 | H23: =SUM(D23:G23)+M23 -> 375 | I23: =IF(A23>1,400-H23,0) -> 25 | J23: 29.2 | K23: =IF(D23>1,SUM(I23:J23),0) -> 54.2 | L23: =CODE(C23) -> 45 | M23: =IF(L23=120,10,0) -> 0 | N23: =IF(A23>1,1,"") -> 1
A24: Becker Michaela | B24: =IF(A24>1,$A$21,"") -> Schützengau Maintal | C24: x | D24: 91 | E24: 88 | F24: 91 | G24: 91 | H24: =SUM(D24:G24)+M24 -> 371 | I24: =IF(A24>1,400-H24,0) -> 29 | J24: 23.6 | K24: =IF(D24>1,SUM(I24:J24),0) -> 52.6 | L24: =CODE(C24) -> 120 | M24: =IF(L24=120,10,0) -> 10 | N24: =IF(A24>1,1,"") -> 1
A25: Reuter Nadja | B25: Schützengau Maintal | C25: - | D25: 95 | E25: 97 | F25: 96 | G25: 96 | H25: 384 | I25: 16 | J25: 63 | K25: 79 | L25: 45 | M25: 0 | N25: 1 | O25: =IF(O26=4,MAXA(K23:K26),0) -> 0 | P25: Ergebnisse Vorkampf | Q25: Gesamt
C26: - | H26: 0 | I26: =IF(A26>1,400-H26,0) -> 0 | K26: 0 | L26: 45 | M26: 0 | O26: =COUNT(N23:N26) -> 3
H27: =SUM(D27:G27) -> 0 | J27: Gesamt: | K27: =K23+K24+K25+K26-O25 -> 185.8 | P27: 876.9 | Q27: =P27+K27 -> 1062.7
H28: =SUM(D28:G28) -> 0
A30: Schützengau Mittelmain
A31: Namen | B31: Gau | C31: LG/LP | D31: 1. Serie | E31: 2. Serie | F31: 3. Serie | G31: 4. Serie | H31: Ergebnis | I31: Differenz | J31: Tiefschuss | K31: Punkte
A32: nicht angetreten | B32: =IF(A32>1,$A$30,"") -> Schützengau Mittelmain | C32: - | D32: 2 | H32: =SUM(D32:G32)+M32 -> 2 | I32: =IF(A32>1,400-H32,0) -> 398 | J32: 993 | K32: =IF(D32>1,SUM(I32:J32),0) -> 1391 | L32: =CODE(C32) -> 45 | M32: =IF(L32=120,10,0) -> 0 | N32: =IF(A32>1,1,"") -> 1
B33: =IF(A33>1,$A$30,"") ->  | C33: - | H33: =SUM(D33:G33)+M33 -> 0 | I33: =IF(A33>1,400-H33,0) -> 0 | K33: =IF(D33>1,SUM(I33:J33),0) -> 0 | L33: =CODE(C33) -> 45 | M33: =IF(L33=120,10,0) -> 0 | N33: =IF(A33>1,1,"") -> 
C34: - | H34: 0 | I34: 0 | K34: 0 | L34: 45 | M34: 0 | O34: =IF(O35=4,MAXA(K32:K35),0) -> 0 | P34: Ergebnisse Vorkampf | Q34: Gesamt
C35: - | H35: 0 | I35: =IF(A35>1,400-H35,0) -> 0 | K35: 0 | L35: 45 | M35: 0 | O35: =COUNT(N32:N35) -> 1
J36: Gesamt: | K36: =K32+K33+K34+K35-O34 -> 1391 | P36: 609 | Q36: =P36+K36 -> 2000
A42: Schützengau Rhön-Grabfeld
A43: Namen | B43: Gau | C43: LG/LP | D43: 1. Serie | E43: 2. Serie | F43: 3. Serie | G43: 4. Serie | H43: Ergebnis | I43: Differenz | J43: Tiefschuss | K43: Punkte
A44: Reder Luisa | B44: =IF(A44>1,$A$42,"") -> Schützengau Rhön-Grabfeld | C44: - | D44: 87 | E44: 94 | F44: 80 | G44: 84 | H44: =SUM(D44:G44)+M44 -> 345 | I44: =IF(A44>1,400-H44,0) -> 55 | J44: 98.6 | K44: =IF(D44>1,SUM(I44:J44),0) -> 153.6 | L44: =CODE(C44) -> 45 | M44: =IF(L44=120,10,0) -> 0 | N44: =IF(A44>1,1,"") -> 1
A45: Stroh Linda | B45: =IF(A45>1,$A$42,"") -> Schützengau Rhön-Grabfeld | C45: - | D45: 90 | E45: 90 | F45: 95 | G45: 91 | H45: =SUM(D45:G45)+M45 -> 366 | I45: =IF(A45>1,400-H45,0) -> 34 | J45: 58.6 | K45: =IF(D45>1,SUM(I45:J45),0) -> 92.6 | L45: =CODE(C45) -> 45 | M45: =IF(L45=120,10,0) -> 0 | N45: =IF(A45>1,1,"") -> 1
A46: Schmitt Heidi | B46: Schützengau Rhön-Grabfeld | C46: - | D46: 92 | E46: 91 | F46: 86 | G46: 85 | H46: 354 | I46: 46 | J46: 67.2 | K46: 113.2 | L46: 45 | M46: 0 | N46: 1 | O46: =IF(O47=4,MAXA(K44:K47),0) -> 0 | P46: Ergebnisse Vorkampf | Q46: Gesamt
C47: - | H47: 0 | I47: =IF(A47>1,400-H47,0) -> 0 | K47: 0 | L47: 45 | M47: 0 | O47: =COUNT(N44:N47) -> 3
H48: =SUM(D48:G48) -> 0 | J48: Gesamt: | K48: =K44+K45+K46+K47-O46 -> 359.4 | P48: 377.2 | Q48: =P48+K48 -> 736.6
A51: Schützengau Rhön-Saale
A52: Namen | B52: Gau | C52: LG/LP | D52: 1. Serie | E52: 2. Serie | F52: 3. Serie | G52: 4. Serie | H52: Ergebnis | I52: Differenz | J52: Tiefschuss | K52: Punkte
A53: Beck Sonja | B53: =IF(A53>1,$A$51,"") -> Schützengau Rhön-Saale | C53: - | D53: 87 | E53: 92 | F53: 83 | G53: 84 | H53: =SUM(D53:G53)+M53 -> 346 | I53: =IF(A53>1,400-H53,0) -> 54 | J53: 27.8 | K53: =IF(D53>1,SUM(I53:J53),0) -> 81.8 | L53: =CODE(C53) -> 45 | M53: =IF(L53=120,10,0) -> 0 | N53: =IF(A53>1,1,"") -> 1
A54: Röder Sonja | B54: =IF(A54>1,$A$51,"") -> Schützengau Rhön-Saale | C54: - | D54: 91 | E54: 91 | F54: 93 | G54: 83 | H54: =SUM(D54:G54)+M54 -> 358 | I54: =IF(A54>1,400-H54,0) -> 42 | J54: 99.7 | K54: =IF(D54>1,SUM(I54:J54),0) -> 141.7 | L54: =CODE(C54) -> 45 | M54: =IF(L54=120,10,0) -> 0 | N54: =IF(A54>1,1,"") -> 1
A55: Schlembach Maria | B55: Schützengau Rhön-Saale | C55: x | D55: 92 | E55: 92 | F55: 86 | G55: 91 | H55: 371 | I55: 29 | J55: 44 | K55: 73 | L55: 120 | M55: 10 | N55: 1 | O55: =IF(O56=4,MAXA(K53:K56),0) -> 190.6 | P55: Ergebnisse Vorkampf | Q55: Gesamt
A56: Voll Renate | B56: Schützengau Rhön-Saale | C56: x | D56: 77 | E56: 86 | F56: 81 | G56: 82 | H56: 336 | I56: =IF(A56>1,400-H56,0) -> 64 | J56: 126.6 | K56: 190.6 | L56: 120 | M56: 10 | N56: 1 | O56: =COUNT(N53:N56) -> 4
J57: Gesamt: | K57: =K53+K54+K55+K56-O55 -> 296.5 | P57: 523 | Q57: =P57+K57 -> 819.5
A60: Schützengau Schweinfurt
A61: Namen | B61: Gau | C61: LG/LP | D61: 1. Serie | E61: 2. Serie | F61: 3. Serie | G61: 4. Serie | H61: Ergebnis | I61: Differenz | J61: Tiefschuss | K61: Punkte
A62: Baumeister Ilse | B62: =IF(A62>1,$A$60,"") -> Schützengau Schweinfurt | C62: - | D62: 93 | E62: 87 | F62: 88 | G62: 88 | H62: =SUM(D62:G62)+M62 -> 356 | I62: =IF(A62>1,400-H62,0) -> 44 | J62: 23.6 | K62: =IF(D62>1,SUM(I62:J62),0) -> 67.6 | L62: =CODE(C62) -> 45 | M62: =IF(L62=120,10,0) -> 0 | N62: =IF(A62>1,1,"") -> 1
A63: Rinder Sandra | B63: =IF(A63>1,$A$60,"") -> Schützengau Schweinfurt | C63: - | D63: 93 | E63: 96 | F63: 97 | G63: 94 | H63: =SUM(D63:G63)+M63 -> 380 | I63: =IF(A63>1,400-H63,0) -> 20 | J63: 29 | K63: =IF(D63>1,SUM(I63:J63),0) -> 49 | L63: =CODE(C63) -> 45 | M63: =IF(L63=120,10,0) -> 0 | N63: =IF(A63>1,1,"") -> 1
A64: Jasmin Schinzel | B64: Schützengau Schweinfurt | C64: - | D64: 89 | E64: 93 | F64: 89 | G64: 91 | H64: 362 | I64: 38 | J64: 104 | K64: 142 | L64: 45 | M64: 0 | N64: 1 | O64: =IF(O65=4,MAXA(K62:K65),0) -> 0 | P64: Ergebnisse Vorkampf | Q64: Gesamt
C65: - | H65: 0 | I65: =IF(A65>1,400-H65,0) -> 0 | K65: 0 | L65: 45 | M65: 0 | O65: =COUNT(N62:N65) -> 3
H66: =SUM(D66:G66) -> 0 | J66: Gesamt: | K66: =K62+K63+K64+K65-O64 -> 258.6 | P66: 519 | Q66: =P66+K66 -> 777.6
A69: Schützengau Würzburg
A70: Namen | B70: Gau | C70: LG/LP | D70: 1. Serie | E70: 2. Serie | F70: 3. Serie | G70: 4. Serie | H70: Ergebnis | I70: Differenz | J70: Tiefschuss | K70: Punkte
A71: Peter Anna-Lena | B71: =IF(A71>1,$A$69,"") -> Schützengau Würzburg | C71: - | D71: 89 | E71: 85 | F71: 87 | G71: 85 | H71: =SUM(D71:G71)+M71 -> 346 | I71: =IF(A71>1,400-H71,0) -> 54 | J71: 84.4 | K71: =IF(D71>1,SUM(I71:J71),0) -> 138.4 | L71: =CODE(C71) -> 45 | M71: =IF(L71=120,10,0) -> 0 | N71: =IF(A71>1,1,"") -> 1
A72: Martin Violetta | B72: =IF(A72>1,$A$69,"") -> Schützengau Würzburg | C72: - | D72: 97 | E72: 95 | F72: 97 | G72: 97 | H72: =SUM(D72:G72)+M72 -> 386 | I72: =IF(A72>1,400-H72,0) -> 14 | J72: 30.8 | K72: =IF(D72>1,SUM(I72:J72),0) -> 44.8 | L72: =CODE(C72) -> 45 | M72: =IF(L72=120,10,0) -> 0 | N72: =IF(A72>1,1,"") -> 1
A73: Ebert Monika | B73: Schützengau Würzburg | C73: - | D73: 87 | E73: 88 | F73: 83 | G73: 90 | H73: 348 | I73: 52 | J73: 70 | K73: 122 | L73: 45 | M73: 0 | N73: 1 | O73: =IF(O74=4,MAXA(K71:K74),0) -> 0 | P73: Ergebnisse Vorkampf | Q73: Gesamt
C74: - | H74: 0 | I74: =IF(A74>1,400-H74,0) -> 0 | K74: 0 | L74: 45 | M74: 0 | O74: =COUNT(N71:N74) -> 3
J75: Gesamt: | K75: =K71+K72+K73+K74-O73 -> 305.2 | P75: 404.5 | Q75: =P75+K75 -> 709.7

Sheet Endstand Mannschaften
A1: Platz | B1: Gau | C1: 1. Schützin | D1: 2. Schützin | E1: 3. Schützin | F1: 4. Schützin | G1: Punkte
A2: 1. | B2: ='Endkampf Mannschaften '!A69 -> Schützengau Würzburg | C2: ='Endkampf Mannschaften '!A71 -> Peter Anna-Lena | D2: ='Endkampf Mannschaften '!A72 -> Martin Violetta | E2: ='Endkampf Mannschaften '!A73 -> Ebert Monika | F2: ='Endkampf Mannschaften '!A74 -> 0 | G2: ='Endkampf Mannschaften '!Q75 -> 709.7
A3: 2. | B3: ='Endkampf Mannschaften '!A12 -> Schützengau Main-Spessart | C3: ='Endkampf Mannschaften '!A14 -> Bürki Anja | D3: ='Endkampf Mannschaften '!A15 -> Aulbach Jasmin | E3: ='Endkampf Mannschaften '!A16 -> Wagner Marion | F3: ='Endkampf Mannschaften '!A17 -> 0 | G3: ='Endkampf Mannschaften '!Q18 -> 733.4
A4: 3. | B4: ='Endkampf Mannschaften '!A42 -> Schützengau Rhön-Grabfeld | C4: ='Endkampf Mannschaften '!A44 -> Reder Luisa | D4: ='Endkampf Mannschaften '!A45 -> Stroh Linda | E4: ='Endkampf Mannschaften '!A46 -> Schmitt Heidi | F4: ='Endkampf Mannschaften '!A47 -> 0 | G4: ='Endkampf Mannschaften '!Q48 -> 736.6
A5: 4. | B5: ='Endkampf Mannschaften '!A3 -> Schützengau Kitzingen | C5: ='Endkampf Mannschaften '!A5 -> Krämer Bianca | D5: ='Endkampf Mannschaften '!A6 -> Kohr Anette | E5: ='Endkampf Mannschaften '!A7 -> Schäffner Natalia | F5: ='Endkampf Mannschaften '!A8 -> 0 | G5: ='Endkampf Mannschaften '!Q9 -> 763.9
A6: 5. | B6: ='Endkampf Mannschaften '!A60 -> Schützengau Schweinfurt | C6: ='Endkampf Mannschaften '!A62 -> Baumeister Ilse | D6: ='Endkampf Mannschaften '!A63 -> Rinder Sandra | E6: ='Endkampf Mannschaften '!A64 -> Jasmin Schinzel | F6: ='Endkampf Mannschaften '!A65 -> 0 | G6: ='Endkampf Mannschaften '!Q66 -> 777.6
A7: 6. | B7: ='Endkampf Mannschaften '!A51 -> Schützengau Rhön-Saale | C7: ='Endkampf Mannschaften '!A53 -> Beck Sonja | D7: ='Endkampf Mannschaften '!A54 -> Röder Sonja | E7: ='Endkampf Mannschaften '!A55 -> Schlembach Maria | F7: ='Endkampf Mannschaften '!A56 -> Voll Renate | G7: ='Endkampf Mannschaften '!Q57 -> 819.5
A8: 7. | B8: ='Endkampf Mannschaften '!A21 -> Schützengau Maintal | C8: ='Endkampf Mannschaften '!A23 -> Haas Steffi | D8: ='Endkampf Mannschaften '!A24 -> Becker Michaela | E8: ='Endkampf Mannschaften '!A25 -> Reuter Nadja | F8: ='Endkampf Mannschaften '!A26 -> 0 | G8: ='Endkampf Mannschaften '!Q27 -> 1062.7
A9: 8.

Sheet Finale
B1: Bezirksdamenschießen 2018 | J1: Finalschießen - Freistehend
B3: Platz | C3: Name | D3: Gau | E3: Ergebnis Vorkampf | F3: 1. Schuss | G3: 2. Schuss | H3: 3. Schuss | I3: 4. Schuss | J3: 5. Schuss | K3: 6. Schuss | L3: 7. Schuss | M3: 8. Schuss | N3: 9. Schuss | O3: 10. Schuss | P3: Gesamt
B4: 1. | C4: =Punkteverhältnis!B5 -> Schäffner Natalia | D4: =Punkteverhältnis!C5 -> Schützengau Kitzingen | E4: =Punkteverhältnis!K5 -> 30.3 | F4: 10.1 | G4: 8.5 | H4: 10.8 | I4: 10.4 | J4: 10.7 | K4: 9.6 | L4: 10.4 | M4: 10.3 | N4: 9.8 | O4: 10.1 | P4: =SUM(F4:O4) -> 100.7
B5: 2. | C5: =Punkteverhältnis!B9 -> Aulbach Jasmin | D5: =Punkteverhältnis!C9 -> Schützengau Main-Spessart | E5: =Punkteverhältnis!K9 -> 54.1 | F5: 10 | G5: 10.1 | H5: 9.1 | I5: 10.4 | J5: 9.8 | K5: 10.3 | L5: 9.5 | M5: 9.8 | N5: 10.5 | O5: 10.6 | P5: 100.1
B6: 3. | C6: =Punkteverhältnis!B4 -> Wagner Marion | D6: =Punkteverhältnis!C4 -> Schützengau Main-Spessart | E6: =Punkteverhältnis!K4 -> 24 | F6: 10.5 | G6: 10.6 | H6: 10.7 | I6: 10.1 | J6: 8.7 | K6: 9.4 | L6: 10 | M6: 9.4 | N6: 10 | O6: 10 | P6: 99.4
B7: 4. | C7: =Punkteverhältnis!B13 -> Bürki Anja | D7: =Punkteverhältnis!C13 -> Schützengau Main-Spessart | E7: =Punkteverhältnis!K13 -> 75.5 | F7: 9.1 | G7: 9.7 | H7: 9.6 | I7: 10.6 | J7: 10.8 | K7: 10.2 | L7: 10.2 | M7: 10.2 | N7: 9.4 | O7: 8.6 | P7: 98.4
B8: 5. | C8: =Punkteverhältnis!B6 -> Martin Violetta | D8: =Punkteverhältnis!C6 -> Schützengau Würzburg | E8: =Punkteverhältnis!K6 -> 44.8 | F8: 10.6 | G8: 9.4 | H8: 10.1 | I8: 7.8 | J8: 9 | K8: 10.1 | L8: 9.4 | M8: 10.9 | N8: 10.8 | O8: 10.2 | P8: 98.3
B9: 6. | C9: =Punkteverhältnis!B8 -> Becker Michaela | D9: =Punkteverhältnis!C8 -> Schützengau Maintal | E9: =Punkteverhältnis!K8 -> 52.6 | F9: 10 | G9: 9.3 | H9: 9.4 | I9: 10.2 | J9: 9.2 | K9: 9.7 | L9: 9.3 | M9: 8.3 | N9: 9.2 | O9: 10.3 | P9: 94.9
B10: 7. | C10: =Punkteverhältnis!B7 -> Rinder Sandra | D10: =Punkteverhältnis!C7 -> Schützengau Schweinfurt | E10: =Punkteverhältnis!K7 -> 49 | F10: 10 | G10: 9 | H10: 9.2 | I10: 10.3 | J10: 9.4 | K10: 9.2 | L10: 9.3 | M10: 8.8 | N10: 9 | O10: 9.4 | P10: 93.6
B11: 8. | C11: =Punkteverhältnis!B12 -> Schlembach Maria | D11: =Punkteverhältnis!C12 -> Schützengau Rhön-Saale | E11: =Punkteverhältnis!K12 -> 73 | F11: 9.6 | G11: 7.9 | H11: 9.1 | I11: 10.1 | J11: 10 | K11: 10.3 | L11: 9.8 | M11: 7.3 | N11: 6.9 | O11: 9.8 | P11: 90.8
B12: 9. | C12: =Punkteverhältnis!B10 -> Haas Steffi | D12: =Punkteverhältnis!C10 -> Schützengau Maintal | E12: =Punkteverhältnis!K10 -> 54.2 | F12: 8.5 | G12: 9.1 | H12: 9.7 | I12: 7.9 | J12: 8.2 | K12: 8.8 | L12: 10.1 | M12: 10.7 | N12: 9.2 | O12: 7.7 | P12: 89.9
B13: 10. | C13: =Punkteverhältnis!B11 -> Baumeister Ilse | D13: =Punkteverhältnis!C11 -> Schützengau Schweinfurt | E13: =Punkteverhältnis!K11 -> 67.6 | F13: 5.6 | G13: 10.7 | H13: 8.3 | I13: 8.4 | J13: 9.3 | K13: 10.1 | L13: 9.2 | M13: 9.3 | N13: 7.7 | O13: 5.8 | P13: 84.4

Sheet Tiefschuss
A1: Einzelergebnisse Endkampf Bezirksdamenschießen 2018
A2: Bester Tiefschuß (Freistehend)
A3: Platz | B3: Name | C3: Gau | D3: 1. Serie | E3: 2. Serie | F3: 3. Serie | G3: 4. Serie | H3: Ergebnis | I3: Differenz | J3: Tiefschuss | K3: Punkte
A4: 1. | B4: ='Endkampf Mannschaften '!A7 -> Schäffner Natalia | C4: ='Endkampf Mannschaften '!B7 -> Schützengau Kitzingen | D4: ='Endkampf Mannschaften '!D7 -> 91 | E4: ='Endkampf Mannschaften '!E7 -> 94 | F4: ='Endkampf Mannschaften '!F7 -> 94 | G4: ='Endkampf Mannschaften '!G7 -> 97 | H4: ='Endkampf Mannschaften '!H7 -> 376 | I4: ='Endkampf Mannschaften '!I7 -> 24 | J4: ='Endkampf Mannschaften '!J7 -> 6.3 | K4: ='Endkampf Mannschaften '!K7 -> 30.3
A5: 2. | B5: ='Endkampf Mannschaften '!A16 -> Wagner Marion | C5: ='Endkampf Mannschaften '!B16 -> Schützengau Main-Spessart | D5: ='Endkampf Mannschaften '!D16 -> 96 | E5: ='Endkampf Mannschaften '!E16 -> 99 | F5: ='Endkampf Mannschaften '!F16 -> 96 | G5: ='Endkampf Mannschaften '!G16 -> 98 | H5: ='Endkampf Mannschaften '!H16 -> 389 | I5: ='Endkampf Mannschaften '!I16 -> 11 | J5: ='Endkampf Mannschaften '!J16 -> 13 | K5: ='Endkampf Mannschaften '!K16 -> 24
A6: 3. | B6: ='Endkampf Mannschaften '!A24 -> Becker Michaela | C6: ='Endkampf Mannschaften '!B24 -> Schützengau Maintal | D6: ='Endkampf Mannschaften '!D24 -> 91 | E6: ='Endkampf Mannschaften '!E24 -> 88 | F6: ='Endkampf Mannschaften '!F24 -> 91 | G6: ='Endkampf Mannschaften '!G24 -> 91 | H6: ='Endkampf Mannschaften '!H24 -> 371 | I6: ='Endkampf Mannschaften '!I24 -> 29 | J6: ='Endkampf Mannschaften '!J24 -> 23.6 | K6: ='Endkampf Mannschaften '!K24 -> 52.6
A7: 4. | B7: ='Endkampf Mannschaften '!A62 -> Baumeister Ilse | C7: ='Endkampf Mannschaften '!B62 -> Schützengau Schweinfurt | D7: ='Endkampf Mannschaften '!D62 -> 93 | E7: ='Endkampf Mannschaften '!E62 -> 87 | F7: ='Endkampf Mannschaften '!F62 -> 88 | G7: ='Endkampf Mannschaften '!G62 -> 88 | H7: ='Endkampf Mannschaften '!H62 -> 356 | I7: ='Endkampf Mannschaften '!I62 -> 44 | J7: ='Endkampf Mannschaften '!J62 -> 23.6 | K7: ='Endkampf Mannschaften '!K62 -> 67.6
A8: 5. | B8: ='Endkampf Mannschaften '!A53 -> Beck Sonja | C8: ='Endkampf Mannschaften '!B53 -> Schützengau Rhön-Saale | D8: ='Endkampf Mannschaften '!D53 -> 87 | E8: ='Endkampf Mannschaften '!E53 -> 92 | F8: ='Endkampf Mannschaften '!F53 -> 83 | G8: ='Endkampf Mannschaften '!G53 -> 84 | H8: ='Endkampf Mannschaften '!H53 -> 346 | I8: ='Endkampf Mannschaften '!I53 -> 54 | J8: ='Endkampf Mannschaften '!J53 -> 27.8 | K8: ='Endkampf Mannschaften '!K53 -> 81.8
A9: 6. | B9: ='Endkampf Mannschaften '!A63 -> Rinder Sandra | C9: ='Endkampf Mannschaften '!B63 -> Schützengau Schweinfurt | D9: ='Endkampf Mannschaften '!D63 -> 93 | E9: ='Endkampf Mannschaften '!E63 -> 96 | F9: ='Endkampf Mannschaften '!F63 -> 97 | G9: ='Endkampf Mannschaften '!G63 -> 94 | H9: ='Endkampf Mannschaften '!H63 -> 380 | I9: ='Endkampf Mannschaften '!I63 -> 20 | J9: ='Endkampf Mannschaften '!J63 -> 29 | K9: ='Endkampf Mannschaften '!K63 -> 49
A10: 7. | B10: ='Endkampf Mannschaften '!A15 -> Aulbach Jasmin | C10: ='Endkampf Mannschaften '!B15 -> Schützengau Main-Spessart | D10: ='Endkampf Mannschaften '!D15 -> 93 | E10: ='Endkampf Mannschaften '!E15 -> 96 | F10: ='Endkampf Mannschaften '!F15 -> 94 | G10: ='Endkampf Mannschaften '!G15 -> 92 | H10: ='Endkampf Mannschaften '!H15 -> 375 | I10: ='Endkampf Mannschaften '!I15 -> 25 | J10: ='Endkampf Mannschaften '!J15 -> 29.1 | K10: ='Endkampf Mannschaften '!K15 -> 54.1
A11: 8. | B11: ='Endkampf Mannschaften '!A23 -> Haas Steffi | C11: ='Endkampf Mannschaften '!B23 -> Schützengau Maintal | D11: ='Endkampf Mannschaften '!D23 -> 97 | E11: ='Endkampf Mannschaften '!E23 -> 93 | F11: ='Endkampf Mannschaften '!F23 -> 94 | G11: ='Endkampf Mannschaften '!G23 -> 91 | H11: ='Endkampf Mannschaften '!H23 -> 375 | I11: ='Endkampf Mannschaften '!I23 -> 25 | J11: ='Endkampf Mannschaften '!J23 -> 29.2 | K11: ='Endkampf Mannschaften '!K23 -> 54.2
A12: 9. | B12: ='Endkampf Mannschaften '!A72 -> Martin Violetta | C12: ='Endkampf Mannschaften '!B72 -> Schützengau Würzburg | D12: ='Endkampf Mannschaften '!D72 -> 97 | E12: ='Endkampf Mannschaften '!E72 -> 95 | F12: ='Endkampf Mannschaften '!F72 -> 97 | G12: ='Endkampf Mannschaften '!G72 -> 97 | H12: ='Endkampf Mannschaften '!H72 -> 386 | I12: ='Endkampf Mannschaften '!I72 -> 14 | J12: ='Endkampf Mannschaften '!J72 -> 30.8 | K12: ='Endkampf Mannschaften '!K72 -> 44.8
A13: 10. | B13: ='Endkampf Mannschaften '!A55 -> Schlembach Maria | C13: ='Endkampf Mannschaften '!B55 -> Schützengau Rhön-Saale | D13: ='Endkampf Mannschaften '!D55 -> 92 | E13: ='Endkampf Mannschaften '!E55 -> 92 | F13: ='Endkampf Mannschaften '!F55 -> 86 | G13: ='Endkampf Mannschaften '!G55 -> 91 | H13: ='Endkampf Mannschaften '!H55 -> 371 | I13: ='Endkampf Mannschaften '!I55 -> 29 | J13: ='Endkampf Mannschaften '!J55 -> 44 | K13: ='Endkampf Mannschaften '!K55 -> 73
A14: 11. | B14: ='Endkampf Mannschaften '!A5 -> Krämer Bianca | C14: ='Endkampf Mannschaften '!B5 -> Schützengau Kitzingen | D14: ='Endkampf Mannschaften '!D5 -> 94 | E14: ='Endkampf Mannschaften '!E5 -> 88 | F14: ='Endkampf Mannschaften '!F5 -> 89 | G14: ='Endkampf Mannschaften '!G5 -> 87 | H14: ='Endkampf Mannschaften '!H5 -> 358 | I14: ='Endkampf Mannschaften '!I5 -> 42 | J14: ='Endkampf Mannschaften '!J5 -> 55.9 | K14: ='Endkampf Mannschaften '!K5 -> 97.9
A15: 12. | B15: ='Endkampf Mannschaften '!A14 -> Bürki Anja | C15: ='Endkampf Mannschaften '!B14 -> Schützengau Main-Spessart | D15: ='Endkampf Mannschaften '!D14 -> 96 | E15: ='Endkampf Mannschaften '!E14 -> 94 | F15: ='Endkampf Mannschaften '!F14 -> 97 | G15: ='Endkampf Mannschaften '!G14 -> 94 | H15: ='Endkampf Mannschaften '!H14 -> 381 | I15: ='Endkampf Mannschaften '!I14 -> 19 | J15: ='Endkampf Mannschaften '!J14 -> 56.5 | K15: ='Endkampf Mannschaften '!K14 -> 75.5
A16: 13. | B16: ='Endkampf Mannschaften '!A45 -> Stroh Linda | C16: ='Endkampf Mannschaften '!B45 -> Schützengau Rhön-Grabfeld | D16: ='Endkampf Mannschaften '!D45 -> 90 | E16: ='Endkampf Mannschaften '!E45 -> 90 | F16: ='Endkampf Mannschaften '!F45 -> 95 | G16: ='Endkampf Mannschaften '!G45 -> 91 | H16: ='Endkampf Mannschaften '!H45 -> 366 | I16: ='Endkampf Mannschaften '!I45 -> 34 | J16: ='Endkampf Mannschaften '!J45 -> 58.6 | K16: ='Endkampf Mannschaften '!K45 -> 92.6
A17: 14. | B17: ='Endkampf Mannschaften '!A25 -> Reuter Nadja | C17: ='Endkampf Mannschaften '!B25 -> Schützengau Maintal | D17: ='Endkampf Mannschaften '!D25 -> 95 | E17: ='Endkampf Mannschaften '!E25 -> 97 | F17: ='Endkampf Mannschaften '!F25 -> 96 | G17: ='Endkampf Mannschaften '!G25 -> 96 | H17: ='Endkampf Mannschaften '!H25 -> 384 | I17: ='Endkampf Mannschaften '!I25 -> 16 | J17: ='Endkampf Mannschaften '!J25 -> 63 | K17: ='Endkampf Mannschaften '!K25 -> 79
A18: 15. | B18: ='Endkampf Mannschaften '!A6 -> Kohr Anette | C18: ='Endkampf Mannschaften '!B6 -> Schützengau Kitzingen | D18: ='Endkampf Mannschaften '!D6 -> 83 | E18: ='Endkampf Mannschaften '!E6 -> 89 | F18: ='Endkampf Mannschaften '!F6 -> 87 | G18: ='Endkampf Mannschaften '!G6 -> 82 | H18: ='Endkampf Mannschaften '!H6 -> 341 | I18: ='Endkampf Mannschaften '!I6 -> 59 | J18: ='Endkampf Mannschaften '!J6 -> 63.1 | K18: ='Endkampf Mannschaften '!K6 -> 122.1
A19: 16. | B19: ='Endkampf Mannschaften '!A46 -> Schmitt Heidi | C19: ='Endkampf Mannschaften '!B46 -> Schützengau Rhön-Grabfeld | D19: ='Endkampf Mannschaften '!D46 -> 92 | E19: ='Endkampf Mannschaften '!E46 -> 91 | F19: ='Endkampf Mannschaften '!F46 -> 86 | G19: ='Endkampf Mannschaften '!G46 -> 85 | H19: ='Endkampf Mannschaften '!H46 -> 354 | I19: ='Endkampf Mannschaften '!I46 -> 46 | J19: ='Endkampf Mannschaften '!J46 -> 67.2 | K19: ='Endkampf Mannschaften '!K46 -> 113.2
A20: 17. | B20: ='Endkampf Mannschaften '!A73 -> Ebert Monika | C20: ='Endkampf Mannschaften '!B73 -> Schützengau Würzburg | D20: ='Endkampf Mannschaften '!D73 -> 87 | E20: ='Endkampf Mannschaften '!E73 -> 88 | F20: ='Endkampf Mannschaften '!F73 -> 83 | G20: ='Endkampf Mannschaften '!G73 -> 90 | H20: ='Endkampf Mannschaften '!H73 -> 348 | I20: ='Endkampf Mannschaften '!I73 -> 52 | J20: ='Endkampf Mannschaften '!J73 -> 70 | K20: ='Endkampf Mannschaften '!K73 -> 122
A21: 18. | B21: ='Endkampf Mannschaften '!A71 -> Peter Anna-Lena | C21: ='Endkampf Mannschaften '!B71 -> Schützengau Würzburg | D21: ='Endkampf Mannschaften '!D71 -> 89 | E21: ='Endkampf Mannschaften '!E71 -> 85 | F21: ='Endkampf Mannschaften '!F71 -> 87 | G21: ='Endkampf Mannschaften '!G71 -> 85 | H21: ='Endkampf Mannschaften '!H71 -> 346 | I21: ='Endkampf Mannschaften '!I71 -> 54 | J21: ='Endkampf Mannschaften '!J71 -> 84.4 | K21: ='Endkampf Mannschaften '!K71 -> 138.4
A22: 19. | B22: ='Endkampf Mannschaften '!A44 -> Reder Luisa | C22: ='Endkampf Mannschaften '!B44 -> Schützengau Rhön-Grabfeld | D22: ='Endkampf Mannschaften '!D44 -> 87 | E22: ='Endkampf Mannschaften '!E44 -> 94 | F22: ='Endkampf Mannschaften '!F44 -> 80 | G22: ='Endkampf Mannschaften '!G44 -> 84 | H22: ='Endkampf Mannschaften '!H44 -> 345 | I22: ='Endkampf Mannschaften '!I44 -> 55 | J22: ='Endkampf Mannschaften '!J44 -> 98.6 | K22: ='Endkampf Mannschaften '!K44 -> 153.6
A23: 20. | B23: ='Endkampf Mannschaften '!A54 -> Röder Sonja | C23: ='Endkampf Mannschaften '!B54 -> Schützengau Rhön-Saale | D23: ='Endkampf Mannschaften '!D54 -> 91 | E23: ='Endkampf Mannschaften '!E54 -> 91 | F23: ='Endkampf Mannschaften '!F54 -> 93 | G23: ='Endkampf Mannschaften '!G54 -> 83 | H23: ='Endkampf Mannschaften '!H54 -> 358 | I23: ='Endkampf Mannschaften '!I54 -> 42 | J23: ='Endkampf Mannschaften '!J54 -> 99.7 | K23: ='Endkampf Mannschaften '!K54 -> 141.7
A24: 21. | B24: ='Endkampf Mannschaften '!A64 -> Jasmin Schinzel | C24: ='Endkampf Mannschaften '!B64 -> Schützengau Schweinfurt | D24: ='Endkampf Mannschaften '!D64 -> 89 | E24: ='Endkampf Mannschaften '!E64 -> 93 | F24: ='Endkampf Mannschaften '!F64 -> 89 | G24: ='Endkampf Mannschaften '!G64 -> 91 | H24: ='Endkampf Mannschaften '!H64 -> 362 | I24: ='Endkampf Mannschaften '!I64 -> 38 | J24: ='Endkampf Mannschaften '!J64 -> 104 | K24: ='Endkampf Mannschaften '!K64 -> 142
A25: 22. | B25: ='Endkampf Mannschaften '!A56 -> Voll Renate | C25: ='Endkampf Mannschaften '!B56 -> Schützengau Rhön-Saale | D25: ='Endkampf Mannschaften '!D56 -> 77 | E25: ='Endkampf Mannschaften '!E56 -> 86 | F25: ='Endkampf Mannschaften '!F56 -> 81 | G25: ='Endkampf Mannschaften '!G56 -> 82 | H25: ='Endkampf Mannschaften '!H56 -> 336 | I25: ='Endkampf Mannschaften '!I56 -> 64 | J25: ='Endkampf Mannschaften '!J56 -> 126.6 | K25: ='Endkampf Mannschaften '!K56 -> 190.6

Sheet Punkteverhältnis
A1: Einzelergebnisse Endkampf Bezirksdamenschießen 2018
A2: Bestes Punkteverhältnis (Freistehend)
A3: Platz | B3: Name | C3: Gau | D3: 1. Serie | E3: 2. Serie | F3: 3. Serie | G3: 4. Serie | H3: Ergebnis | I3: Differenz | J3: Tiefschuss | K3: Punkte
A4: 1. | B4: ='Endkampf Mannschaften '!A16 -> Wagner Marion | C4: ='Endkampf Mannschaften '!B16 -> Schützengau Main-Spessart | D4: ='Endkampf Mannschaften '!D16 -> 96 | E4: ='Endkampf Mannschaften '!E16 -> 99 | F4: ='Endkampf Mannschaften '!F16 -> 96 | G4: ='Endkampf Mannschaften '!G16 -> 98 | H4: ='Endkampf Mannschaften '!H16 -> 389 | I4: ='Endkampf Mannschaften '!I16 -> 11 | J4: ='Endkampf Mannschaften '!J16 -> 13 | K4: ='Endkampf Mannschaften '!K16 -> 24
A5: 2. | B5: ='Endkampf Mannschaften '!A7 -> Schäffner Natalia | C5: ='Endkampf Mannschaften '!B7 -> Schützengau Kitzingen | D5: ='Endkampf Mannschaften '!D7 -> 91 | E5: ='Endkampf Mannschaften '!E7 -> 94 | F5: ='Endkampf Mannschaften '!F7 -> 94 | G5: ='Endkampf Mannschaften '!G7 -> 97 | H5: ='Endkampf Mannschaften '!H7 -> 376 | I5: ='Endkampf Mannschaften '!I7 -> 24 | J5: ='Endkampf Mannschaften '!J7 -> 6.3 | K5: ='Endkampf Mannschaften '!K7 -> 30.3
A6: 3. | B6: ='Endkampf Mannschaften '!A72 -> Martin Violetta | C6: ='Endkampf Mannschaften '!B72 -> Schützengau Würzburg | D6: ='Endkampf Mannschaften '!D72 -> 97 | E6: ='Endkampf Mannschaften '!E72 -> 95 | F6: ='Endkampf Mannschaften '!F72 -> 97 | G6: ='Endkampf Mannschaften '!G72 -> 97 | H6: ='Endkampf Mannschaften '!H72 -> 386 | I6: ='Endkampf Mannschaften '!I72 -> 14 | J6: ='Endkampf Mannschaften '!J72 -> 30.8 | K6: ='Endkampf Mannschaften '!K72 -> 44.8
A7: 4. | B7: ='Endkampf Mannschaften '!A63 -> Rinder Sandra | C7: ='Endkampf Mannschaften '!B63 -> Schützengau Schweinfurt | D7: ='Endkampf Mannschaften '!D63 -> 93 | E7: ='Endkampf Mannschaften '!E63 -> 96 | F7: ='Endkampf Mannschaften '!F63 -> 97 | G7: ='Endkampf Mannschaften '!G63 -> 94 | H7: ='Endkampf Mannschaften '!H63 -> 380 | I7: ='Endkampf Mannschaften '!I63 -> 20 | J7: ='Endkampf Mannschaften '!J63 -> 29 | K7: ='Endkampf Mannschaften '!K63 -> 49
A8: 5. | B8: ='Endkampf Mannschaften '!A24 -> Becker Michaela | C8: ='Endkampf Mannschaften '!B24 -> Schützengau Maintal | D8: ='Endkampf Mannschaften '!D24 -> 91 | E8: ='Endkampf Mannschaften '!E24 -> 88 | F8: ='Endkampf Mannschaften '!F24 -> 91 | G8: ='Endkampf Mannschaften '!G24 -> 91 | H8: ='Endkampf Mannschaften '!H24 -> 371 | I8: ='Endkampf Mannschaften '!I24 -> 29 | J8: ='Endkampf Mannschaften '!J24 -> 23.6 | K8: ='Endkampf Mannschaften '!K24 -> 52.6
A9: 6. | B9: ='Endkampf Mannschaften '!A15 -> Aulbach Jasmin | C9: ='Endkampf Mannschaften '!B15 -> Schützengau Main-Spessart | D9: ='Endkampf Mannschaften '!D15 -> 93 | E9: ='Endkampf Mannschaften '!E15 -> 96 | F9: ='Endkampf Mannschaften '!F15 -> 94 | G9: ='Endkampf Mannschaften '!G15 -> 92 | H9: ='Endkampf Mannschaften '!H15 -> 375 | I9: ='Endkampf Mannschaften '!I15 -> 25 | J9: ='Endkampf Mannschaften '!J15 -> 29.1 | K9: ='Endkampf Mannschaften '!K15 -> 54.1
A10: 7. | B10: ='Endkampf Mannschaften '!A23 -> Haas Steffi | C10: ='Endkampf Mannschaften '!B23 -> Schützengau Maintal | D10: ='Endkampf Mannschaften '!D23 -> 97 | E10: ='Endkampf Mannschaften '!E23 -> 93 | F10: ='Endkampf Mannschaften '!F23 -> 94 | G10: ='Endkampf Mannschaften '!G23 -> 91 | H10: ='Endkampf Mannschaften '!H23 -> 375 | I10: ='Endkampf Mannschaften '!I23 -> 25 | J10: ='Endkampf Mannschaften '!J23 -> 29.2 | K10: ='Endkampf Mannschaften '!K23 -> 54.2
A11: 8. | B11: ='Endkampf Mannschaften '!A62 -> Baumeister Ilse | C11: ='Endkampf Mannschaften '!B62 -> Schützengau Schweinfurt | D11: ='Endkampf Mannschaften '!D62 -> 93 | E11: ='Endkampf Mannschaften '!E62 -> 87 | F11: ='Endkampf Mannschaften '!F62 -> 88 | G11: ='Endkampf Mannschaften '!G62 -> 88 | H11: ='Endkampf Mannschaften '!H62 -> 356 | I11: ='Endkampf Mannschaften '!I62 -> 44 | J11: ='Endkampf Mannschaften '!J62 -> 23.6 | K11: ='Endkampf Mannschaften '!K62 -> 67.6
A12: 9. | B12: ='Endkampf Mannschaften '!A55 -> Schlembach Maria | C12: ='Endkampf Mannschaften '!B55 -> Schützengau Rhön-Saale | D12: ='Endkampf Mannschaften '!D55 -> 92 | E12: ='Endkampf Mannschaften '!E55 -> 92 | F12: ='Endkampf Mannschaften '!F55 -> 86 | G12: ='Endkampf Mannschaften '!G55 -> 91 | H12: ='Endkampf Mannschaften '!H55 -> 371 | I12: ='Endkampf Mannschaften '!I55 -> 29 | J12: ='Endkampf Mannschaften '!J55 -> 44 | K12: ='Endkampf Mannschaften '!K55 -> 73
A13: 10. | B13: ='Endkampf Mannschaften '!A14 -> Bürki Anja | C13: ='Endkampf Mannschaften '!B14 -> Schützengau Main-Spessart | D13: ='Endkampf Mannschaften '!D14 -> 96 | E13: ='Endkampf Mannschaften '!E14 -> 94 | F13: ='Endkampf Mannschaften '!F14 -> 97 | G13: ='Endkampf Mannschaften '!G14 -> 94 | H13: ='Endkampf Mannschaften '!H14 -> 381 | I13: ='Endkampf Mannschaften '!I14 -> 19 | J13: ='Endkampf Mannschaften '!J14 -> 56.5 | K13: ='Endkampf Mannschaften '!K14 -> 75.5
A14: 11. | B14: ='Endkampf Mannschaften '!A25 -> Reuter Nadja | C14: ='Endkampf Mannschaften '!B25 -> Schützengau Maintal | D14: ='Endkampf Mannschaften '!D25 -> 95 | E14: ='Endkampf Mannschaften '!E25 -> 97 | F14: ='Endkampf Mannschaften '!F25 -> 96 | G14: ='Endkampf Mannschaften '!G25 -> 96 | H14: ='Endkampf Mannschaften '!H25 -> 384 | I14: ='Endkampf Mannschaften '!I25 -> 16 | J14: ='Endkampf Mannschaften '!J25 -> 63 | K14: ='Endkampf Mannschaften '!K25 -> 79
A15: 12. | B15: ='Endkampf Mannschaften '!A53 -> Beck Sonja | C15: ='Endkampf Mannschaften '!B53 -> Schützengau Rhön-Saale | D15: ='Endkampf Mannschaften '!D53 -> 87 | E15: ='Endkampf Mannschaften '!E53 -> 92 | F15: ='Endkampf Mannschaften '!F53 -> 83 | G15: ='Endkampf Mannschaften '!G53 -> 84 | H15: ='Endkampf Mannschaften '!H53 -> 346 | I15: ='Endkampf Mannschaften '!I53 -> 54 | J15: ='Endkampf Mannschaften '!J53 -> 27.8 | K15: ='Endkampf Mannschaften '!K53 -> 81.8
A16: 13. | B16: ='Endkampf Mannschaften '!A45 -> Stroh Linda | C16: ='Endkampf Mannschaften '!B45 -> Schützengau Rhön-Grabfeld | D16: ='Endkampf Mannschaften '!D45 -> 90 | E16: ='Endkampf Mannschaften '!E45 -> 90 | F16: ='Endkampf Mannschaften '!F45 -> 95 | G16: ='Endkampf Mannschaften '!G45 -> 91 | H16: ='Endkampf Mannschaften '!H45 -> 366 | I16: ='Endkampf Mannschaften '!I45 -> 34 | J16: ='Endkampf Mannschaften '!J45 -> 58.6 | K16: ='Endkampf Mannschaften '!K45 -> 92.6
A17: 14. | B17: ='Endkampf Mannschaften '!A5 -> Krämer Bianca | C17: ='Endkampf Mannschaften '!B5 -> Schützengau Kitzingen | D17: ='Endkampf Mannschaften '!D5 -> 94 | E17: ='Endkampf Mannschaften '!E5 -> 88 | F17: ='Endkampf Mannschaften '!F5 -> 89 | G17: ='Endkampf Mannschaften '!G5 -> 87 | H17: ='Endkampf Mannschaften '!H5 -> 358 | I17: ='Endkampf Mannschaften '!I5 -> 42 | J17: ='Endkampf Mannschaften '!J5 -> 55.9 | K17: ='Endkampf Mannschaften '!K5 -> 97.9
A18: 15. | B18: ='Endkampf Mannschaften '!A46 -> Schmitt Heidi | C18: ='Endkampf Mannschaften '!B46 -> Schützengau Rhön-Grabfeld | D18: ='Endkampf Mannschaften '!D46 -> 92 | E18: ='Endkampf Mannschaften '!E46 -> 91 | F18: ='Endkampf Mannschaften '!F46 -> 86 | G18: ='Endkampf Mannschaften '!G46 -> 85 | H18: ='Endkampf Mannschaften '!H46 -> 354 | I18: ='Endkampf Mannschaften '!I46 -> 46 | J18: ='Endkampf Mannschaften '!J46 -> 67.2 | K18: ='Endkampf Mannschaften '!K46 -> 113.2
A19: 16. | B19: ='Endkampf Mannschaften '!A73 -> Ebert Monika | C19: ='Endkampf Mannschaften '!B73 -> Schützengau Würzburg | D19: ='Endkampf Mannschaften '!D73 -> 87 | E19: ='Endkampf Mannschaften '!E73 -> 88 | F19: ='Endkampf Mannschaften '!F73 -> 83 | G19: ='Endkampf Mannschaften '!G73 -> 90 | H19: ='Endkampf Mannschaften '!H73 -> 348 | I19: ='Endkampf Mannschaften '!I73 -> 52 | J19: ='Endkampf Mannschaften '!J73 -> 70 | K19: ='Endkampf Mannschaften '!K73 -> 122
A20: 17. | B20: ='Endkampf Mannschaften '!A6 -> Kohr Anette | C20: ='Endkampf Mannschaften '!B6 -> Schützengau Kitzingen | D20: ='Endkampf Mannschaften '!D6 -> 83 | E20: ='Endkampf Mannschaften '!E6 -> 89 | F20: ='Endkampf Mannschaften '!F6 -> 87 | G20: ='Endkampf Mannschaften '!G6 -> 82 | H20: ='Endkampf Mannschaften '!H6 -> 341 | I20: ='Endkampf Mannschaften '!I6 -> 59 | J20: ='Endkampf Mannschaften '!J6 -> 63.1 | K20: ='Endkampf Mannschaften '!K6 -> 122.1
A21: 18. | B21: ='Endkampf Mannschaften '!A71 -> Peter Anna-Lena | C21: ='Endkampf Mannschaften '!B71 -> Schützengau Würzburg | D21: ='Endkampf Mannschaften '!D71 -> 89 | E21: ='Endkampf Mannschaften '!E71 -> 85 | F21: ='Endkampf Mannschaften '!F71 -> 87 | G21: ='Endkampf Mannschaften '!G71 -> 85 | H21: ='Endkampf Mannschaften '!H71 -> 346 | I21: ='Endkampf Mannschaften '!I71 -> 54 | J21: ='Endkampf Mannschaften '!J71 -> 84.4 | K21: ='Endkampf Mannschaften '!K71 -> 138.4
A22: 19. | B22: ='Endkampf Mannschaften '!A54 -> Röder Sonja | C22: ='Endkampf Mannschaften '!B54 -> Schützengau Rhön-Saale | D22: ='Endkampf Mannschaften '!D54 -> 91 | E22: ='Endkampf Mannschaften '!E54 -> 91 | F22: ='Endkampf Mannschaften '!F54 -> 93 | G22: ='Endkampf Mannschaften '!G54 -> 83 | H22: ='Endkampf Mannschaften '!H54 -> 358 | I22: ='Endkampf Mannschaften '!I54 -> 42 | J22: ='Endkampf Mannschaften '!J54 -> 99.7 | K22: ='Endkampf Mannschaften '!K54 -> 141.7
A23: 20. | B23: ='Endkampf Mannschaften '!A64 -> Jasmin Schinzel | C23: ='Endkampf Mannschaften '!B64 -> Schützengau Schweinfurt | D23: ='Endkampf Mannschaften '!D64 -> 89 | E23: ='Endkampf Mannschaften '!E64 -> 93 | F23: ='Endkampf Mannschaften '!F64 -> 89 | G23: ='Endkampf Mannschaften '!G64 -> 91 | H23: ='Endkampf Mannschaften '!H64 -> 362 | I23: ='Endkampf Mannschaften '!I64 -> 38 | J23: ='Endkampf Mannschaften '!J64 -> 104 | K23: ='Endkampf Mannschaften '!K64 -> 142
A24: 21. | B24: ='Endkampf Mannschaften '!A44 -> Reder Luisa | C24: ='Endkampf Mannschaften '!B44 -> Schützengau Rhön-Grabfeld | D24: ='Endkampf Mannschaften '!D44 -> 87 | E24: ='Endkampf Mannschaften '!E44 -> 94 | F24: ='Endkampf Mannschaften '!F44 -> 80 | G24: ='Endkampf Mannschaften '!G44 -> 84 | H24: ='Endkampf Mannschaften '!H44 -> 345 | I24: ='Endkampf Mannschaften '!I44 -> 55 | J24: ='Endkampf Mannschaften '!J44 -> 98.6 | K24: ='Endkampf Mannschaften '!K44 -> 153.6
A25: 22. | B25: ='Endkampf Mannschaften '!A56 -> Voll Renate | C25: ='Endkampf Mannschaften '!B56 -> Schützengau Rhön-Saale | D25: ='Endkampf Mannschaften '!D56 -> 77 | E25: ='Endkampf Mannschaften '!E56 -> 86 | F25: ='Endkampf Mannschaften '!F56 -> 81 | G25: ='Endkampf Mannschaften '!G56 -> 82 | H25: ='Endkampf Mannschaften '!H56 -> 336 | I25: ='Endkampf Mannschaften '!I56 -> 64 | J25: ='Endkampf Mannschaften '!J56 -> 126.6 | K25: ='Endkampf Mannschaften '!K56 -> 190.6

Sheet Urkunden einzel
A1: Platz | B1: Name | C1: Gau | D1: 1. Serie | E1: 2. Serie | F1: 3. Serie | G1: 4. Serie | H1: Ergebnis | I1: Differenz | J1: Tiefschuss | K1: Punkte
A2: =Punkteverhältnis!#REF! ->  | B2: =Punkteverhältnis!#REF! ->  | C2: =Punkteverhältnis!#REF! ->  | D2: =Punkteverhältnis!#REF! ->  | E2: =Punkteverhältnis!#REF! ->  | F2: =Punkteverhältnis!#REF! ->  | G2: =Punkteverhältnis!#REF! ->  | H2: =Punkteverhältnis!#REF! ->  | I2: =Punkteverhältnis!#REF! ->  | J2: =Punkteverhältnis!#REF! ->  | K2: =Punkteverhältnis!#REF! -> 
A3: =Punkteverhältnis!#REF! ->  | B3: =Punkteverhältnis!#REF! ->  | C3: =Punkteverhältnis!#REF! ->  | D3: =Punkteverhältnis!#REF! ->  | E3: =Punkteverhältnis!#REF! ->  | F3: =Punkteverhältnis!#REF! ->  | G3: =Punkteverhältnis!#REF! ->  | H3: =Punkteverhältnis!#REF! ->  | I3: =Punkteverhältnis!#REF! ->  | J3: =Punkteverhältnis!#REF! ->  | K3: =Punkteverhältnis!#REF! -> 
A4: =Punkteverhältnis!A4 -> 1. | B4: =Punkteverhältnis!B4 -> Wagner Marion | C4: =Punkteverhältnis!C4 -> Schützengau Main-Spessart | D4: =Punkteverhältnis!D4 -> 96 | E4: =Punkteverhältnis!E4 -> 99 | F4: =Punkteverhältnis!F4 -> 96 | G4: =Punkteverhältnis!G4 -> 98 | H4: =Punkteverhältnis!H4 -> 389 | I4: =Punkteverhältnis!I4 -> 11 | J4: =Punkteverhältnis!J4 -> 13 | K4: =Punkteverhältnis!K4 -> 24
A5: =Punkteverhältnis!A5 -> 2. | B5: =Punkteverhältnis!B5 -> Schäffner Natalia | C5: =Punkteverhältnis!C5 -> Schützengau Kitzingen | D5: =Punkteverhältnis!D5 -> 91 | E5: =Punkteverhältnis!E5 -> 94 | F5: =Punkteverhältnis!F5 -> 94 | G5: =Punkteverhältnis!G5 -> 97 | H5: =Punkteverhältnis!H5 -> 376 | I5: =Punkteverhältnis!I5 -> 24 | J5: =Punkteverhältnis!J5 -> 6.3 | K5: =Punkteverhältnis!K5 -> 30.3
A6: =Punkteverhältnis!A6 -> 3. | B6: =Punkteverhältnis!B6 -> Martin Violetta | C6: =Punkteverhältnis!C6 -> Schützengau Würzburg | D6: =Punkteverhältnis!D6 -> 97 | E6: =Punkteverhältnis!E6 -> 95 | F6: =Punkteverhältnis!F6 -> 97 | G6: =Punkteverhältnis!G6 -> 97 | H6: =Punkteverhältnis!H6 -> 386 | I6: =Punkteverhältnis!I6 -> 14 | J6: =Punkteverhältnis!J6 -> 30.8 | K6: =Punkteverhältnis!K6 -> 44.8
A7: =Punkteverhältnis!#REF! ->  | B7: =Punkteverhältnis!#REF! ->  | C7: =Punkteverhältnis!#REF! ->  | D7: =Punkteverhältnis!#REF! ->  | E7: =Punkteverhältnis!#REF! ->  | F7: =Punkteverhältnis!#REF! ->  | G7: =Punkteverhältnis!#REF! ->  | H7: =Punkteverhältnis!#REF! ->  | I7: =Punkteverhältnis!#REF! ->  | J7: =Punkteverhältnis!#REF! ->  | K7: =Punkteverhältnis!#REF! -> 
A8: =Punkteverhältnis!#REF! ->  | B8: =Punkteverhältnis!#REF! ->  | C8: =Punkteverhältnis!#REF! ->  | D8: =Punkteverhältnis!#REF! ->  | E8: =Punkteverhältnis!#REF! ->  | F8: =Punkteverhältnis!#REF! ->  | G8: =Punkteverhältnis!#REF! ->  | H8: =Punkteverhältnis!#REF! ->  | I8: =Punkteverhältnis!#REF! ->  | J8: =Punkteverhältnis!#REF! ->  | K8: =Punkteverhältnis!#REF! -> 
A9: =Punkteverhältnis!#REF! ->  | B9: =Punkteverhältnis!#REF! ->  | C9: =Punkteverhältnis!#REF! ->  | D9: =Punkteverhältnis!#REF! ->  | E9: =Punkteverhältnis!#REF! ->  | F9: =Punkteverhältnis!#REF! ->  | G9: =Punkteverhältnis!#REF! ->  | H9: =Punkteverhältnis!#REF! ->  | I9: =Punkteverhältnis!#REF! ->  | J9: =Punkteverhältnis!#REF! ->  | K9: =Punkteverhältnis!#REF! -> 
A10: =Punkteverhältnis!#REF! ->  | B10: =Punkteverhältnis!#REF! ->  | C10: =Punkteverhältnis!#REF! ->  | D10: =Punkteverhältnis!#REF! ->  | E10: =Punkteverhältnis!#REF! ->  | F10: =Punkteverhältnis!#REF! ->  | G10: =Punkteverhältnis!#REF! ->  | H10: =Punkteverhältnis!#REF! ->  | I10: =Punkteverhältnis!#REF! ->  | J10: =Punkteverhältnis!#REF! ->  | K10: =Punkteverhältnis!#REF! -> 
A11: =Punkteverhältnis!#REF! ->  | B11: =Punkteverhältnis!#REF! ->  | C11: =Punkteverhältnis!#REF! ->  | D11: =Punkteverhältnis!#REF! ->  | E11: =Punkteverhältnis!#REF! ->  | F11: =Punkteverhältnis!#REF! ->  | G11: =Punkteverhältnis!#REF! ->  | H11: =Punkteverhältnis!#REF! ->  | I11: =Punkteverhältnis!#REF! ->  | J11: =Punkteverhältnis!#REF! ->  | K11: =Punkteverhältnis!#REF! -> 
A12: =Punkteverhältnis!#REF! ->  | B12: =Punkteverhältnis!#REF! ->  | C12: =Punkteverhältnis!#REF! ->  | D12: =Punkteverhältnis!#REF! ->  | E12: =Punkteverhältnis!#REF! ->  | F12: =Punkteverhältnis!#REF! ->  | G12: =Punkteverhältnis!#REF! ->  | H12: =Punkteverhältnis!#REF! ->  | I12: =Punkteverhältnis!#REF! ->  | J12: =Punkteverhältnis!#REF! ->  | K12: =Punkteverhältnis!#REF! -> 
A13: =Punkteverhältnis!A7 -> 4. | B13: =Punkteverhältnis!B7 -> Rinder Sandra | C13: =Punkteverhältnis!C7 -> Schützengau Schweinfurt | D13: =Punkteverhältnis!D7 -> 93 | E13: =Punkteverhältnis!E7 -> 96 | F13: =Punkteverhältnis!F7 -> 97 | G13: =Punkteverhältnis!G7 -> 94 | H13: =Punkteverhältnis!H7 -> 380 | I13: =Punkteverhältnis!I7 -> 20 | J13: =Punkteverhältnis!J7 -> 29 | K13: =Punkteverhältnis!K7 -> 49
A14: =Punkteverhältnis!#REF! ->  | B14: =Punkteverhältnis!#REF! ->  | C14: =Punkteverhältnis!#REF! ->  | D14: =Punkteverhältnis!#REF! ->  | E14: =Punkteverhältnis!#REF! ->  | F14: =Punkteverhältnis!#REF! ->  | G14: =Punkteverhältnis!#REF! ->  | H14: =Punkteverhältnis!#REF! ->  | I14: =Punkteverhältnis!#REF! ->  | J14: =Punkteverhältnis!#REF! ->  | K14: =Punkteverhältnis!#REF! -> 
A15: =Punkteverhältnis!#REF! ->  | B15: =Punkteverhältnis!#REF! ->  | C15: =Punkteverhältnis!#REF! ->  | D15: =Punkteverhältnis!#REF! ->  | E15: =Punkteverhältnis!#REF! ->  | F15: =Punkteverhältnis!#REF! ->  | G15: =Punkteverhältnis!#REF! ->  | H15: =Punkteverhältnis!#REF! ->  | I15: =Punkteverhältnis!#REF! ->  | J15: =Punkteverhältnis!#REF! ->  | K15: =Punkteverhältnis!#REF! -> 
A16: =Punkteverhältnis!A8 -> 5. | B16: =Punkteverhältnis!B8 -> Becker Michaela | C16: =Punkteverhältnis!C8 -> Schützengau Maintal | D16: =Punkteverhältnis!D8 -> 91 | E16: =Punkteverhältnis!E8 -> 88 | F16: =Punkteverhältnis!F8 -> 91 | G16: =Punkteverhältnis!G8 -> 91 | H16: =Punkteverhältnis!H8 -> 371 | I16: =Punkteverhältnis!I8 -> 29 | J16: =Punkteverhältnis!J8 -> 23.6 | K16: =Punkteverhältnis!K8 -> 52.6
A17: =Punkteverhältnis!A9 -> 6. | B17: =Punkteverhältnis!B9 -> Aulbach Jasmin | C17: =Punkteverhältnis!C9 -> Schützengau Main-Spessart | D17: =Punkteverhältnis!D9 -> 93 | E17: =Punkteverhältnis!E9 -> 96 | F17: =Punkteverhältnis!F9 -> 94 | G17: =Punkteverhältnis!G9 -> 92 | H17: =Punkteverhältnis!H9 -> 375 | I17: =Punkteverhältnis!I9 -> 25 | J17: =Punkteverhältnis!J9 -> 29.1 | K17: =Punkteverhältnis!K9 -> 54.1
A18: =Punkteverhältnis!A10 -> 7. | B18: =Punkteverhältnis!B10 -> Haas Steffi | C18: =Punkteverhältnis!C10 -> Schützengau Maintal | D18: =Punkteverhältnis!D10 -> 97 | E18: =Punkteverhältnis!E10 -> 93 | F18: =Punkteverhältnis!F10 -> 94 | G18: =Punkteverhältnis!G10 -> 91 | H18: =Punkteverhältnis!H10 -> 375 | I18: =Punkteverhältnis!I10 -> 25 | J18: =Punkteverhältnis!J10 -> 29.2 | K18: =Punkteverhältnis!K10 -> 54.2
A19: =Punkteverhältnis!A11 -> 8. | B19: =Punkteverhältnis!B11 -> Baumeister Ilse | C19: =Punkteverhältnis!C11 -> Schützengau Schweinfurt | D19: =Punkteverhältnis!D11 -> 93 | E19: =Punkteverhältnis!E11 -> 87 | F19: =Punkteverhältnis!F11 -> 88 | G19: =Punkteverhältnis!G11 -> 88 | H19: =Punkteverhältnis!H11 -> 356 | I19: =Punkteverhältnis!I11 -> 44 | J19: =Punkteverhältnis!J11 -> 23.6 | K19: =Punkteverhältnis!K11 -> 67.6
A20: =Punkteverhältnis!A12 -> 9. | B20: =Punkteverhältnis!B12 -> Schlembach Maria | C20: =Punkteverhältnis!C12 -> Schützengau Rhön-Saale | D20: =Punkteverhältnis!D12 -> 92 | E20: =Punkteverhältnis!E12 -> 92 | F20: =Punkteverhältnis!F12 -> 86 | G20: =Punkteverhältnis!G12 -> 91 | H20: =Punkteverhältnis!H12 -> 371 | I20: =Punkteverhältnis!I12 -> 29 | J20: =Punkteverhältnis!J12 -> 44 | K20: =Punkteverhältnis!K12 -> 73
A21: =Punkteverhältnis!A13 -> 10. | B21: =Punkteverhältnis!B13 -> Bürki Anja | C21: =Punkteverhältnis!C13 -> Schützengau Main-Spessart | D21: =Punkteverhältnis!D13 -> 96 | E21: =Punkteverhältnis!E13 -> 94 | F21: =Punkteverhältnis!F13 -> 97 | G21: =Punkteverhältnis!G13 -> 94 | H21: =Punkteverhältnis!H13 -> 381 | I21: =Punkteverhältnis!I13 -> 19 | J21: =Punkteverhältnis!J13 -> 56.5 | K21: =Punkteverhältnis!K13 -> 75.5
A22: =Punkteverhältnis!A14 -> 11. | B22: =Punkteverhältnis!B14 -> Reuter Nadja | C22: =Punkteverhältnis!C14 -> Schützengau Maintal | D22: =Punkteverhältnis!D14 -> 95 | E22: =Punkteverhältnis!E14 -> 97 | F22: =Punkteverhältnis!F14 -> 96 | G22: =Punkteverhältnis!G14 -> 96 | H22: =Punkteverhältnis!H14 -> 384 | I22: =Punkteverhältnis!I14 -> 16 | J22: =Punkteverhältnis!J14 -> 63 | K22: =Punkteverhältnis!K14 -> 79
A23: =Punkteverhältnis!A15 -> 12. | B23: =Punkteverhältnis!B15 -> Beck Sonja | C23: =Punkteverhältnis!C15 -> Schützengau Rhön-Saale | D23: =Punkteverhältnis!D15 -> 87 | E23: =Punkteverhältnis!E15 -> 92 | F23: =Punkteverhältnis!F15 -> 83 | G23: =Punkteverhältnis!G15 -> 84 | H23: =Punkteverhältnis!H15 -> 346 | I23: =Punkteverhältnis!I15 -> 54 | J23: =Punkteverhältnis!J15 -> 27.8 | K23: =Punkteverhältnis!K15 -> 81.8
A24: =Punkteverhältnis!A16 -> 13. | B24: =Punkteverhältnis!B16 -> Stroh Linda | C24: =Punkteverhältnis!C16 -> Schützengau Rhön-Grabfeld | D24: =Punkteverhältnis!D16 -> 90 | E24: =Punkteverhältnis!E16 -> 90 | F24: =Punkteverhältnis!F16 -> 95 | G24: =Punkteverhältnis!G16 -> 91 | H24: =Punkteverhältnis!H16 -> 366 | I24: =Punkteverhältnis!I16 -> 34 | J24: =Punkteverhältnis!J16 -> 58.6 | K24: =Punkteverhältnis!K16 -> 92.6
A25: =Punkteverhältnis!A17 -> 14. | B25: =Punkteverhältnis!B17 -> Krämer Bianca | C25: =Punkteverhältnis!C17 -> Schützengau Kitzingen | D25: =Punkteverhältnis!D17 -> 94 | E25: =Punkteverhältnis!E17 -> 88 | F25: =Punkteverhältnis!F17 -> 89 | G25: =Punkteverhältnis!G17 -> 87 | H25: =Punkteverhältnis!H17 -> 358 | I25: =Punkteverhältnis!I17 -> 42 | J25: =Punkteverhältnis!J17 -> 55.9 | K25: =Punkteverhältnis!K17 -> 97.9
A26: =Punkteverhältnis!A18 -> 15. | B26: =Punkteverhältnis!B18 -> Schmitt Heidi | C26: =Punkteverhältnis!C18 -> Schützengau Rhön-Grabfeld | D26: =Punkteverhältnis!D18 -> 92 | E26: =Punkteverhältnis!E18 -> 91 | F26: =Punkteverhältnis!F18 -> 86 | G26: =Punkteverhältnis!G18 -> 85 | H26: =Punkteverhältnis!H18 -> 354 | I26: =Punkteverhältnis!I18 -> 46 | J26: =Punkteverhältnis!J18 -> 67.2 | K26: =Punkteverhältnis!K18 -> 113.2
A27: =Punkteverhältnis!A19 -> 16. | B27: =Punkteverhältnis!B19 -> Ebert Monika | C27: =Punkteverhältnis!C19 -> Schützengau Würzburg | D27: =Punkteverhältnis!D19 -> 87 | E27: =Punkteverhältnis!E19 -> 88 | F27: =Punkteverhältnis!F19 -> 83 | G27: =Punkteverhältnis!G19 -> 90 | H27: =Punkteverhältnis!H19 -> 348 | I27: =Punkteverhältnis!I19 -> 52 | J27: =Punkteverhältnis!J19 -> 70 | K27: =Punkteverhältnis!K19 -> 122
A28: =Punkteverhältnis!A20 -> 17. | B28: =Punkteverhältnis!B20 -> Kohr Anette | C28: =Punkteverhältnis!C20 -> Schützengau Kitzingen | D28: =Punkteverhältnis!D20 -> 83 | E28: =Punkteverhältnis!E20 -> 89 | F28: =Punkteverhältnis!F20 -> 87 | G28: =Punkteverhältnis!G20 -> 82 | H28: =Punkteverhältnis!H20 -> 341 | I28: =Punkteverhältnis!I20 -> 59 | J28: =Punkteverhältnis!J20 -> 63.1 | K28: =Punkteverhältnis!K20 -> 122.1
A29: =Punkteverhältnis!A21 -> 18. | B29: =Punkteverhältnis!B21 -> Peter Anna-Lena | C29: =Punkteverhältnis!C21 -> Schützengau Würzburg | D29: =Punkteverhältnis!D21 -> 89 | E29: =Punkteverhältnis!E21 -> 85 | F29: =Punkteverhältnis!F21 -> 87 | G29: =Punkteverhältnis!G21 -> 85 | H29: =Punkteverhältnis!H21 -> 346 | I29: =Punkteverhältnis!I21 -> 54 | J29: =Punkteverhältnis!J21 -> 84.4 | K29: =Punkteverhältnis!K21 -> 138.4
A30: =Punkteverhältnis!A22 -> 19. | B30: =Punkteverhältnis!B22 -> Röder Sonja | C30: =Punkteverhältnis!C22 -> Schützengau Rhön-Saale | D30: =Punkteverhältnis!D22 -> 91 | E30: =Punkteverhältnis!E22 -> 91 | F30: =Punkteverhältnis!F22 -> 93 | G30: =Punkteverhältnis!G22 -> 83 | H30: =Punkteverhältnis!H22 -> 358 | I30: =Punkteverhältnis!I22 -> 42 | J30: =Punkteverhältnis!J22 -> 99.7 | K30: =Punkteverhältnis!K22 -> 141.7
A31: =Punkteverhältnis!A23 -> 20. | B31: =Punkteverhältnis!B23 -> Jasmin Schinzel | C31: =Punkteverhältnis!C23 -> Schützengau Schweinfurt | D31: =Punkteverhältnis!D23 -> 89 | E31: =Punkteverhältnis!E23 -> 93 | F31: =Punkteverhältnis!F23 -> 89 | G31: =Punkteverhältnis!G23 -> 91 | H31: =Punkteverhältnis!H23 -> 362 | I31: =Punkteverhältnis!I23 -> 38 | J31: =Punkteverhältnis!J23 -> 104 | K31: =Punkteverhältnis!K23 -> 142
A32: =Punkteverhältnis!A24 -> 21. | B32: =Punkteverhältnis!B24 -> Reder Luisa | C32: =Punkteverhältnis!C24 -> Schützengau Rhön-Grabfeld | D32: =Punkteverhältnis!D24 -> 87 | E32: =Punkteverhältnis!E24 -> 94 | F32: =Punkteverhältnis!F24 -> 80 | G32: =Punkteverhältnis!G24 -> 84 | H32: =Punkteverhältnis!H24 -> 345 | I32: =Punkteverhältnis!I24 -> 55 | J32: =Punkteverhältnis!J24 -> 98.6 | K32: =Punkteverhältnis!K24 -> 153.6
A33: =Punkteverhältnis!A25 -> 22. | B33: =Punkteverhältnis!B25 -> Voll Renate | C33: =Punkteverhältnis!C25 -> Schützengau Rhön-Saale | D33: =Punkteverhältnis!D25 -> 77 | E33: =Punkteverhältnis!E25 -> 86 | F33: =Punkteverhältnis!F25 -> 81 | G33: =Punkteverhältnis!G25 -> 82 | H33: =Punkteverhältnis!H25 -> 336 | I33: =Punkteverhältnis!I25 -> 64 | J33: =Punkteverhältnis!J25 -> 126.6 | K33: =Punkteverhältnis!K25 -> 190.6
